fUST/lending_fUST_20241006
["ID","MTS","AMOUNT","RATE_DAILY","PERIOD"]
[339918780,1728151847582,-591.15070058,0.00013698,2]
[339918781,1728151847592,-500.0,0.00013698,2]
[339918782,1728151847601,-500.0,0.00013698,2]
[339918783,1728151847611,-500.0,0.00013698,2]
[339918784,1728151847621,-500.0,0.00013698,2]
[339918785,1728151847631,-500.0,0.00013698,2]
[339918786,1728151847640,-615.19,0.00013698,2]
[339918787,1728151847650,-500.0,0.00013698,2]
[339918788,1728151847660,-500.0,0.00013698,2]
[339918789,1728151847669,-500.0,0.00013698,2]
[339918790,1728151847679,-561.96997819,0.00013698,2]
[339918791,1728151847688,-500.0,0.00013698,2]
[339918792,1728151847698,-1000.0,0.00013698,2]
[339918793,1728151847708,-500.0,0.00013698,2]
[339918794,1728151847717,-1000.0,0.00013698,2]
[339918795,1728151847727,-1000.0,0.00013698,2]
[339918796,1728151847739,-500.0,0.00013698,2]
[339918797,1728151847748,-1000.0,0.00013698,2]
[339918798,1728151847758,-721.89763369,0.00013698,2]
[339918799,1728151847767,-500.0,0.00013698,2]
[339918800,1728151847777,-500.0,0.00013698,2]
[339918801,1728151847786,-882.8,0.00013698,2]
[339918802,1728151847795,-577.4,0.00013698,2]
[339918803,1728151847804,-500.0,0.00013698,2]
[339918804,1728151847814,-500.0,0.00013698,2]
[339918805,1728151847823,-166.85,0.00013698,2]
[339918806,1728151847833,-610.11,0.00013698,2]
[339918807,1728151847842,-500.0,0.00013698,2]
[339918808,1728151847851,-500.0,0.00013698,2]
[339918809,1728151847860,-500.0,0.00013698,2]
[339918810,1728151847871,-500.0,0.00013698,2]
[339918811,1728151847881,-500.0,0.00013698,2]
[339918812,1728151847891,-500.0,0.00013698,2]
[339918813,1728151847901,-500.0,0.00013698,2]
[339918814,1728151847911,-500.0,0.00013698,2]
[339918815,1728151847920,-500.0,0.00013698,2]
[339918816,1728151847929,-312.18202847,0.00013698,2]
[339918817,1728151847939,-500.0,0.00013698,2]
[339918818,1728151847949,-498.15835859,0.00013698,2]
[339918819,1728151847958,-523.71828451,0.00013698,2]
[339918820,1728151847967,-500.0,0.00013698,2]
[339918821,1728151847976,-500.0,0.00013698,2]
[339918822,1728151847986,-500.0,0.00013698,2]
[339918823,1728151847996,-691.74,0.00013698,2]
[339918824,1728151848006,-500.0,0.00013698,2]
[339918825,1728151848015,-500.0,0.00013698,2]
[339918826,1728151848024,-500.0,0.00013698,2]
[339918827,1728151848033,-500.0,0.00013698,2]
[339918828,1728151848043,-500.0,0.00013698,2]
[339918829,1728151848052,-500.0,0.00013698,2]
[339918830,1728151848061,-765.71,0.00013698,2]
[339918831,1728151848071,-500.0,0.00013698,2]
[339918832,1728151848081,-500.0,0.00013698,2]
[339918833,1728151848090,-639.91288621,0.00013698,2]
[339918834,1728151848100,-500.0,0.00013698,2]
[339918835,1728151848109,-910.11,0.00013698,2]
[339918836,1728151848119,-500.0,0.00013698,2]
[339918837,1728151848130,-500.0,0.00013698,2]
[339918838,1728151848140,-500.0,0.00013698,2]
[339918839,1728151848149,-500.0,0.00013698,2]
[339918840,1728151848159,-632.06,0.00013698,2]
[339918841,1728151848168,-548.03,0.00013698,2]
[339918842,1728151848177,-634.73188057,0.00013698,2]
[339918843,1728151848186,-705.7,0.00013698,2]
[339918844,1728151848196,-500.0,0.00013698,2]
[339918845,1728151848206,-500.0,0.00013698,2]
[339918846,1728151848215,-500.0,0.00013698,2]
[339918847,1728151848224,-500.38543815,0.00013698,2]
[339918848,1728151848233,-500.19906074,0.00013698,2]
[339918849,1728151848243,-500.0,0.00013698,2]
[339918850,1728151848252,-500.0,0.00013698,2]
[339918851,1728151848262,-500.0,0.00013698,2]
[339918852,1728151848272,-500.0,0.00013698,2]
[339918853,1728151848281,-543.48,0.00013698,2]
[339918854,1728151848290,-500.0,0.00013698,2]
[339918855,1728151848300,-500.0,0.00013698,2]
[339918856,1728151848309,-500.0,0.00013698,2]
[339918857,1728151848318,-500.0,0.00013698,2]
[339918858,1728151848328,-500.0,0.00013698,2]
[339918859,1728151848337,-6864.04,0.00013698,2]
[339918860,1728151848346,-500.0,0.00013698,2]
[339918861,1728151848355,-500.0,0.00013698,2]
[339918862,1728151848365,-500.0,0.00013698,2]
[339918863,1728151848374,-500.0,0.00013698,2]
[339918864,1728151848384,-1144.96,0.00013698,2]
[339918865,1728151848393,-624.05529106,0.00013698,2]
[339918866,1728151848402,-500.0,0.00013698,2]
[339918867,1728151848413,-500.0,0.00013698,2]
[339918868,1728151848422,-780.86,0.00013698,2]
[339918869,1728151848432,-500.0,0.00013698,2]
[339918870,1728151848441,-500.0,0.00013698,2]
[339918871,1728151848450,-500.0,0.00013698,2]
[339918872,1728151848459,-500.0,0.00013698,2]
[339918873,1728151848468,-601.22332672,0.00013698,2]
[339918874,1728151848477,-634.77048445,0.00013698,2]
[339918875,1728151848488,-500.0,0.00013698,2]
[339918876,1728151848502,-500.0,0.00013698,2]
[339918877,1728151848511,-500.0,0.00013698,2]
[339918878,1728151848521,-500.0,0.00013698,2]
[339918879,1728151848531,-541.96,0.00013698,2]
[339918880,1728151848540,-500.0,0.00013698,2]
[339918881,1728151848550,-500.0,0.00013698,2]
[339918882,1728151848560,-500.0,0.00013698,2]
[339918883,1728151848570,-500.0,0.00013698,2]
[339918884,1728151848579,-760.62,0.00013698,2]
[339918885,1728151848588,-500.0,0.00013698,2]
[339918886,1728151848598,-500.0,0.00013698,2]
[339918887,1728151848607,-500.0,0.00013698,2]
[339918888,1728151848618,-500.0,0.00013698,2]
[339918889,1728151848628,-500.0,0.00013698,2]
[339918890,1728151848638,-158.23586869,0.00013698,2]
[339918891,1728151848648,-500.0,0.00013698,2]
[339918892,1728151848657,-500.0,0.00013698,2]
[339918893,1728151848667,-500.0,0.00013698,2]
[339918894,1728151848676,-538.91,0.00013698,2]
[339918895,1728151848685,-500.0,0.00013698,2]
[339918896,1728151848694,-500.0,0.00013698,2]
[339918897,1728151848704,-624.92,0.00013698,2]
[339918898,1728151848713,-500.0,0.00013698,2]
[339918899,1728151848723,-500.0,0.00013698,2]
[339918900,1728151848733,-500.0,0.00013698,2]
[339918901,1728151848744,-500.0,0.00013698,2]
[339918902,1728151848754,-500.0,0.00013698,2]
[339918903,1728151848763,-500.0,0.00013698,2]
[339918904,1728151848773,-500.0,0.00013698,2]
[339918905,1728151848783,-151.0,0.00013698,2]
[339918906,1728151848792,-500.0,0.00013698,2]
[339918907,1728151848801,-500.0,0.00013698,2]
[339918908,1728151848811,-500.0,0.00013698,2]
[339918909,1728151848820,-500.0,0.00013698,2]
[339918910,1728151848830,-500.0,0.00013698,2]
[339918911,1728151848839,-500.0,0.00013698,2]
[339918912,1728151848851,-500.0,0.00013698,2]
[339918913,1728151848860,-189.1554571,0.00013698,2]
[339918914,1728151848870,-500.0,0.00013698,2]
[339918915,1728151848880,-517.71,0.00013698,2]
[339918916,1728151848890,-500.0,0.00013698,2]
[339918917,1728151848902,-500.0,0.00013698,2]
[339918918,1728151848912,-500.0,0.00013698,2]
[339918919,1728151848922,-500.0,0.00013698,2]
[339918920,1728151848931,-500.0,0.00013698,2]
[339918921,1728151848942,-478.67336886,0.00013698,2]
[339918922,1728151848953,-542.85,0.00013698,2]
[339918923,1728151848962,-628.32981171,0.00013698,2]
[339918924,1728151848972,-639.79,0.00013698,2]
[339918925,1728151848981,-1410.79,0.00013698,2]
[339918926,1728151848991,-151.0,0.00013698,2]
[339918927,1728151849001,-509.84,0.00013698,2]
[339918928,1728151849011,-500.0,0.00013698,2]
[339918929,1728151849022,-500.06672939,0.00013698,2]
[339918930,1728151849032,-500.0,0.00013698,2]
[339918931,1728151849044,-500.0,0.00013698,2]
[339918932,1728151849054,-575.23,0.00013698,2]
[339918933,1728151849063,-500.0,0.00013698,2]
[339918934,1728151849073,-500.0,0.00013698,2]
[339918935,1728151849083,-500.0,0.00013698,2]
[339918936,1728151849093,-845.2,0.00013698,2]
[339918937,1728151849102,-500.0,0.00013698,2]
[339918938,1728151849114,-500.0,0.00013698,2]
[339918939,1728151849124,-177.51635053,0.00013698,2]
[339918940,1728151849135,-500.0,0.00013698,2]
[339918941,1728151849144,-500.0,0.00013698,2]
[339918942,1728151849155,-500.0,0.00013698,2]
[339918943,1728151849165,-500.0,0.00013698,2]
[339918944,1728151849175,-500.0,0.00013698,2]
[339918945,1728151849184,-500.0,0.00013698,2]
[339918946,1728151849194,-500.0,0.00013698,2]
[339918947,1728151849203,-523.23129746,0.00013698,2]
[339918948,1728151849213,-500.0,0.00013698,2]
[339918949,1728151849225,-500.0,0.00013698,2]
[339918950,1728151849234,-500.0,0.00013698,2]
[339918951,1728151849243,-1492.89,0.00013698,2]
[339918952,1728151849253,-500.0,0.00013698,2]
[339918953,1728151849263,-500.0,0.00013698,2]
[339918954,1728151849273,-500.0,0.00013698,2]
[339918955,1728151849282,-500.0,0.00013698,2]
[339918956,1728151849291,-150.0,0.00013698,2]
[339918957,1728151849300,-500.0,0.00013698,2]
[339918958,1728151849309,-500.0,0.00013698,2]
[339918959,1728151849319,-500.0,0.00013698,2]
[339918960,1728151849328,-151.0,0.00013698,2]
[339918961,1728151849337,-580.29,0.00013698,2]
[339918962,1728151849346,-1068.16,0.00013698,2]
[339918963,1728151849355,-500.0,0.00013698,2]
[339918964,1728151849365,-500.0,0.00013698,2]
[339918965,1728151849385,-970.89,0.00013698,2]
[339918966,1728151849394,-500.0,0.00013698,2]
[339918967,1728151849404,-500.0,0.00013698,2]
[339918968,1728151849413,-151.0,0.00013698,2]
[339918969,1728151849422,-631.77,0.00013698,2]
[339918970,1728151849432,-508.54,0.00013698,2]
[339918971,1728151849441,-500.0,0.00013698,2]
[339918972,1728151849451,-500.0,0.00013698,2]
[339918973,1728151849461,-187.053742,0.00013698,2]
[339918974,1728151849471,-500.0,0.00013698,2]
[339918975,1728151849480,-1023.88,0.00013698,2]
[339918976,1728151849489,-500.0,0.00013698,2]
[339918977,1728151849500,-187.053742,0.00013698,2]
[339918978,1728151849510,-500.0,0.00013698,2]
[339918979,1728151849520,-500.0,0.00013698,2]
[339918980,1728151849530,-500.0,0.00013698,2]
[339918981,1728151849540,-500.0,0.00013698,2]
[339918982,1728151849552,-504.88031631,0.00013698,2]
[339918983,1728151849561,-500.0,0.00013698,2]
[339918984,1728151849574,-500.0,0.00013698,2]
[339918985,1728151849585,-500.0,0.00013698,2]
[339918986,1728151849595,-500.0,0.00013698,2]
[339918987,1728151849607,-500.0,0.00013698,2]
[339918988,1728151849619,-500.0,0.00013698,2]
[339918989,1728151849630,-500.0,0.00013698,2]
[339918990,1728151849640,-553.62,0.00013698,2]
[339918991,1728151849650,-500.0,0.00013698,2]
[339918992,1728151849662,-500.0,0.00013698,2]
[339918993,1728151849672,-592.01,0.00013698,2]
[339918994,1728151849682,-500.0,0.00013698,2]
[339918995,1728151849692,-500.0,0.00013698,2]
[339918996,1728151849701,-500.0,0.00013698,2]
[339918997,1728151849713,-500.0,0.00013698,2]
[339918998,1728151849723,-500.00000073,0.00013698,2]
[339918999,1728151849732,-616.74,0.00013698,2]
[339919000,1728151849744,-653.92,0.00013698,2]
[339919001,1728151849754,-500.0,0.00013698,2]
[339919002,1728151849764,-500.0,0.00013698,2]
[339919003,1728151849773,-657.78,0.00013698,2]
[339919004,1728151849784,-500.0,0.00013698,2]
[339919005,1728151849795,-481.16086493,0.00013698,2]
[339919006,1728151849806,-544.35,0.00013698,2]
[339919007,1728151849818,-500.0,0.00013698,2]
[339919008,1728151849829,-500.0,0.00013698,2]
[339919009,1728151849840,-500.69967053,0.00013698,2]
[339919010,1728151849851,-500.0,0.00013698,2]
[339919011,1728151849862,-500.0,0.00013698,2]
[339919012,1728151849874,-500.0,0.00013698,2]
[339919013,1728151849885,-500.0,0.00013698,2]
[339919014,1728151849897,-1018.11,0.00013698,2]
[339919015,1728151849907,-500.0,0.00013698,2]
[339919016,1728151849919,-500.0,0.00013698,2]
[339919017,1728151849931,-500.0,0.00013698,2]
[339919018,1728151849941,-500.0,0.00013698,2]
[339919019,1728151849951,-500.0,0.00013698,2]
[339919020,1728151849962,-500.0,0.00013698,2]
[339919021,1728151849972,-500.0,0.00013698,2]
[339919022,1728151849983,-500.0,0.00013698,2]
[339919023,1728151849993,-500.0,0.00013698,2]
[339919024,1728151850004,-171.742691,0.00013698,2]
[339919025,1728151850016,-500.0,0.00013698,2]
[339919026,1728151850027,-500.0,0.00013698,2]
[339919027,1728151850037,-500.0,0.00013698,2]
[339919028,1728151850048,-171.742691,0.00013698,2]
[339919029,1728151850058,-567.68,0.00013698,2]
[339919030,1728151850069,-500.0,0.00013698,2]
[339919031,1728151850081,-500.0,0.00013698,2]
[339919032,1728151850092,-500.0,0.00013698,2]
[339919033,1728151850102,-500.0,0.00013698,2]
[339919034,1728151850113,-281.54325186,0.00013698,2]
[339919035,1728151850125,-151.0,0.00013698,2]
[339919036,1728151850137,-502.37580358,0.00013698,2]
[339919037,1728151850147,-500.0,0.00013698,2]
[339919038,1728151850159,-500.0,0.00013698,2]
[339919039,1728151850170,-500.0,0.00013698,2]
[339919040,1728151850182,-500.0,0.00013698,2]
[339919041,1728151850193,-500.0,0.00013698,2]
[339919042,1728151850203,-617.04143342,0.00013698,2]
[339919043,1728151850213,-500.0,0.00013698,2]
[339919044,1728151850222,-500.0,0.00013698,2]
[339919045,1728151850232,-500.0,0.00013698,2]
[339919046,1728151850243,-701.6,0.00013698,2]
[339919047,1728151850254,-500.0,0.00013698,2]
[339919048,1728151850264,-500.0,0.00013698,2]
[339919049,1728151850275,-500.0,0.00013698,2]
[339919050,1728151850287,-382.862986,0.00013698,2]
[339919051,1728151850296,-500.0,0.00013698,2]
[339919052,1728151850308,-500.0,0.00013698,2]
[339919053,1728151850318,-500.0,0.00013698,2]
[339919054,1728151850329,-382.862986,0.00013698,2]
[339919055,1728151850340,-500.0,0.00013698,2]
[339919056,1728151850351,-500.0,0.00013698,2]
[339919057,1728151850361,-500.0,0.00013698,2]
[339919058,1728151850372,-500.0,0.00013698,2]
[339919059,1728151850381,-707.79,0.00013698,2]
[339919060,1728151850390,-500.0,0.00013698,2]
[339919061,1728151850402,-500.0,0.00013698,2]
[339919062,1728151850413,-500.0,0.00013698,2]
[339919063,1728151850424,-500.0,0.00013698,2]
[339919064,1728151850436,-151.0,0.00013698,2]
[339919065,1728151850447,-500.0,0.00013698,2]
[339919066,1728151850456,-500.0,0.00013698,2]
[339919067,1728151850466,-500.0,0.00013698,2]
[339919068,1728151850476,-308.81415811,0.00013698,2]
[339919069,1728151850486,-500.0,0.00013698,2]
[339919070,1728151850637,-500.0,0.00013698,2]
[339919071,1728151850647,-500.0,0.00013698,2]
[339919072,1728151850658,-675.54,0.00013698,2]
[339919073,1728151850668,-500.0,0.00013698,2]
[339919074,1728151850679,-500.0,0.00013698,2]
[339919075,1728151850690,-500.0,0.00013698,2]
[339919076,1728151850699,-500.0,0.00013698,2]
[339919077,1728151850711,-500.0,0.00013698,2]
[339919078,1728151850722,-500.0,0.00013698,2]
[339919079,1728151850732,-500.0,0.00013698,2]
[339919080,1728151850742,-546.09,0.00013698,2]
[339919081,1728151850753,-531.35086019,0.00013698,2]
[339919082,1728151850762,-500.0,0.00013698,2]
[339919083,1728151850775,-558.9,0.00013698,2]
[339919084,1728151850786,-500.0,0.00013698,2]
[339919085,1728151850796,-500.0,0.00013698,2]
[339919086,1728151850807,-646.5731149,0.00013698,2]
[339919087,1728151850819,-500.0,0.00013698,2]
[339919088,1728151850831,-500.0,0.00013698,2]
[339919089,1728151850841,-483.6707995,0.00013698,2]
[339919090,1728151850853,-199.75295439,0.00013698,2]
[339919091,1728151850864,-500.0,0.00013698,2]
[339919092,1728151850875,-500.0,0.00013698,2]
[339919093,1728151850886,-500.0,0.00013698,2]
[339919094,1728151850901,-860.65,0.00013698,2]
[339919095,1728151850912,-500.0,0.00013698,2]
[339919096,1728151850923,-500.0,0.00013698,2]
[339919097,1728151850934,-951.54,0.00013698,2]
[339919098,1728151850946,-945.47,0.00013698,2]
[339919099,1728151850957,-500.0,0.00013698,2]
[339919100,1728151850968,-500.0,0.00013698,2]
[339919101,1728151850978,-500.0,0.00013698,2]
[339919102,1728151850990,-500.0,0.00013698,2]
[339919103,1728151851000,-801.58,0.00013698,2]
[339919104,1728151851011,-512.0,0.00013698,2]
[339919105,1728151851022,-500.0,0.00013698,2]
[339919106,1728151851033,-500.0,0.00013698,2]
[339919107,1728151851043,-500.0,0.00013698,2]
[339919108,1728151851054,-500.0,0.00013698,2]
[339919109,1728151851065,-500.0,0.00013698,2]
[339919110,1728151851074,-756.99,0.00013698,2]
[339919111,1728151851084,-876.043728,0.00013698,2]
[339919112,1728151851095,-659.85,0.00013698,2]
[339919113,1728151851105,-576.41,0.00013698,2]
[339919114,1728151851118,-574.63,0.00013698,2]
[339919115,1728151851131,-500.0,0.00013698,2]
[339919116,1728151851141,-876.043728,0.00013698,2]
[339919117,1728151851151,-500.0,0.00013698,2]
[339919118,1728151851160,-500.0,0.00013698,2]
[339919119,1728151851171,-500.0,0.00013698,2]
[339919120,1728151851181,-500.0,0.00013698,2]
[339919121,1728151851192,-1079.22,0.00013698,2]
[339919122,1728151851202,-869.2,0.00013698,2]
[339919123,1728151851213,-500.0,0.00013698,2]
[339919124,1728151851225,-500.0,0.00013698,2]
[339919125,1728151851236,-541.64,0.00013698,2]
[339919126,1728151851247,-500.0,0.00013698,2]
[339919127,1728151851258,-500.0,0.00013698,2]
[339919128,1728151851269,-500.0,0.00013698,2]
[339919129,1728151851279,-500.0,0.00013698,2]
[339919130,1728151851290,-500.0,0.00013698,2]
[339919131,1728151851300,-151.0,0.00013698,2]
[339919132,1728151851310,-500.0,0.00013698,2]
[339919133,1728151851321,-151.0,0.00013698,2]
[339919134,1728151851331,-151.0,0.00013698,2]
[339919136,1728151851341,-500.0,0.00013698,2]
[339919137,1728151851351,-745.3,0.00013698,2]
[339919138,1728151851362,-581.58,0.00013698,2]
[339919139,1728151851373,-151.0,0.00013698,2]
[339919140,1728151851385,-151.0,0.00013698,2]
[339919141,1728151851395,-500.0,0.00013698,2]
[339919142,1728151851404,-151.0,0.00013698,2]
[339919143,1728151851415,-500.0,0.00013698,2]
[339919144,1728151851424,-252.89610349,0.00013698,2]
[339919145,1728151851434,-500.0,0.00013698,2]
[339919146,1728151851447,-500.0,0.00013698,2]
[339919147,1728151851456,-2009.98,0.00013698,2]
[339919148,1728151851465,-500.0,0.00013698,2]
[339919149,1728151851474,-500.0,0.00013698,2]
[339919150,1728151851483,-500.0,0.00013698,2]
[339919151,1728151851493,-690.17161971,0.00013698,2]
[339919152,1728151851811,-273.26838029,0.00013698,2]
[339919153,1728151851820,-342.73161971,0.00013698,2]
[339919154,1728151852074,-157.26838029,0.00013698,2]
[339919155,1728151852084,-500.0,0.00013698,2]
[339919156,1728151852093,-500.0,0.00013698,2]
[339919157,1728151852103,-500.0,0.00013698,2]
[339919158,1728151852112,-500.0,0.00013698,2]
[339919159,1728151852123,-755.26,0.00013698,2]
[339919160,1728151852132,-500.0,0.00013698,2]
[339919161,1728151852142,-1000.0,0.00013698,2]
[339919162,1728151852152,-1347.88,0.00013698,2]
[339919163,1728151852162,-500.0,0.00013698,2]
[339919164,1728151852172,-500.0,0.00013698,2]
[339919165,1728151852181,-500.0,0.00013698,2]
[339919166,1728151852190,-631.19,0.00013698,2]
[339919167,1728151852200,-500.0,0.00013698,2]
[339919168,1728151852211,-500.0,0.00013698,2]
[339919169,1728151852222,-500.0,0.00013698,2]
[339919170,1728151852233,-500.0,0.00013698,2]
[339919171,1728151852244,-500.0,0.00013698,2]
[339919172,1728151852256,-500.0,0.00013698,2]
[339919173,1728151852269,-151.0,0.00013698,2]
[339919174,1728151852279,-500.0,0.00013698,2]
[339919175,1728151852290,-500.0,0.00013698,2]
[339919176,1728151852301,-500.0,0.00013698,2]
[339919177,1728151852314,-151.0,0.00013698,2]
[339919178,1728151852325,-151.0,0.00013698,2]
[339919179,1728151852335,-151.0,0.00013698,2]
[339919180,1728151852345,-500.0,0.00013698,2]
[339919181,1728151852355,-262.87954,0.00013698,2]
[339919182,1728151852366,-500.0,0.00013698,2]
[339919183,1728151852376,-500.0,0.00013698,2]
[339919184,1728151852386,-500.0,0.00013698,2]
[339919185,1728151852396,-444.72192596,0.00013698,2]
[339919186,1728151852409,-500.0,0.00013698,2]
[339919187,1728151852420,-500.0,0.00013698,2]
[339919188,1728151852431,-500.0,0.00013698,2]
[339919189,1728151852441,-500.0,0.00013698,2]
[339919190,1728151852451,-151.0,0.00013698,2]
[339919191,1728151852461,-500.0,0.00013698,2]
[339919192,1728151852471,-500.0,0.00013698,2]
[339919193,1728151852481,-500.0,0.00013698,2]
[339919194,1728151852492,-623.96,0.00013698,2]
[339919195,1728151852507,-500.0,0.00013698,2]
[339919196,1728151852518,-500.0,0.00013698,2]
[339919197,1728151852529,-500.0,0.00013698,2]
[339919198,1728151852541,-500.0,0.00013698,2]
[339919199,1728151852553,-151.0,0.00013698,2]
[339919200,1728151852563,-151.0,0.00013698,2]
[339919201,1728151852574,-506.42582868,0.00013698,2]
[339919202,1728151852586,-151.0,0.00013698,2]
[339919203,1728151852597,-247.86605585,0.00013698,2]
[339919211,1728151886609,161.0,0.0001991,120]
[339919213,1728151948932,391.74437871,0.0002,120]
[339919214,1728151948979,8005.13562129,0.0002,120]
[339919266,1728152938160,154.0,9.14e-05,2]
[339919267,1728152938551,154.0,9.94e-05,2]
[339919269,1728152942823,154.0,0.000199,120]
[339919337,1728153032139,-300.0,0.00010376,2]
[339919339,1728153032151,-300.0,0.00010376,2]
[339919341,1728153032162,-404.25000015,0.00010377,2]
[339919343,1728153032175,-2112.99295383,0.00010377,2]
[339919345,1728153032189,-1758.57778929,0.00010377,2]
[339919364,1728153032427,-10435.22195,0.00010377,2]
[339919365,1728153032444,-5483.82677558,0.00010377,2]
[339919422,1728153038182,-4705.13053115,0.00010377,2]
[339919424,1728153038193,-705.7320667,0.0001048,2]
[339919426,1728153038204,-154.0,0.0001073,2]
[339919428,1728153038215,-329.97,0.00010959,2]
[339919430,1728153038228,-274.98,0.00010959,2]
[339919432,1728153038237,-229.15,0.00010959,2]
[339919434,1728153038248,-296.73,0.00010959,2]
[339919435,1728153038258,-335.43,0.00010959,2]
[339919436,1728153038269,-352.98,0.00010959,2]
[339919437,1728153038279,-355.37,0.00010959,2]
[339919438,1728153038290,-743.90479509,0.00010959,2]
[339919439,1728153038302,-347.15,0.00010959,2]
[339919440,1728153038314,-331.8,0.00010959,2]
[339919441,1728153038325,-175.0,0.00011056,2]
[339919442,1728153038335,-175.0,0.00011086,2]
[339919443,1728153038346,-175.0,0.00011117,2]
[339919444,1728153038356,-73.31543644,0.00011147,2]
[339919445,1728153038369,-101.68456356,0.00011147,2]
[339919446,1728153038380,-175.0,0.00011177,2]
[339919447,1728153038390,-1084.37065541,0.00011178,2]
[339919448,1728153038399,-175.0,0.00011208,2]
[339919449,1728153038409,-175.0,0.00011238,2]
[339919450,1728153038418,-175.0,0.00011268,2]
[339919451,1728153038427,-175.0,0.00011299,2]
[339919452,1728153038440,-175.0,0.00011329,2]
[339919453,1728153038449,-175.0,0.00011359,2]
[339919454,1728153038458,-175.0,0.0001139,2]
[339919455,1728153038467,-420.0,0.00011409,2]
[339919456,1728153038476,-171.617925,0.00011411,2]
[339919457,1728153038486,-420.0,0.00011414,2]
[339919458,1728153038495,-175.0,0.0001142,2]
[339919459,1728153038505,-171.617925,0.00011422,2]
[339919460,1728153038514,-171.617925,0.00011433,2]
[339919461,1728153038523,-171.617925,0.00011445,2]
[339919462,1728153038532,-175.0,0.0001145,2]
[339919463,1728153038541,-171.617925,0.00011456,2]
[339919464,1728153038550,-171.617925,0.00011468,2]
[339919465,1728153038559,-175.0,0.00011481,2]
[339919466,1728153038568,-175.0,0.00011511,2]
[339919467,1728153038577,-175.0,0.00011541,2]
[339919468,1728153038587,-175.0,0.00011572,2]
[339919469,1728153038595,-175.0,0.00011602,2]
[339919470,1728153038606,-175.0,0.00011632,2]
[339919471,1728153038616,-488.160863,0.00012,2]
[339919472,1728153038627,-587.0,0.00012546,2]
[339919473,1728153038637,-13.83344192,0.00012555,2]
[339919474,1728153038652,-573.16655808,0.00012555,2]
[339919475,1728153038662,-1200.0,0.0001278,2]
[339919476,1728153038675,-3982.37980385,0.000129,2]
[339919477,1728153038687,-3982.37980384,0.000129,2]
[339919478,1728153038698,-830.6183517,0.00013178,2]
[339919479,1728153038708,-306.0,0.00013241,2]
[339919480,1728153038719,-6872.57740064,0.000134,2]
[339919481,1728153038729,-30351.45016836,0.00013561,2]
[339919482,1728153038740,-7154.88636082,0.00013588,2]
[339919483,1728153038752,-93649.9488975,0.00013588,2]
[339919484,1728153038764,-500.0,0.0001359,2]
[339919485,1728153038775,-112260.61655308,0.00013598,2]
[339919486,1728153038784,-1000.0,0.00013598,2]
[339919487,1728153038794,-7196.86532819,0.00013642,2]
[339919488,1728153038803,-3577.44318041,0.00013658,2]
[339919489,1728153038812,-46824.9744488,0.00013658,2]
[339919490,1728153038821,-161.42704715,0.00013673,2]
[339919491,1728153038830,-502.34411266,0.00013673,2]